bitfinex/quotes_ETHUSD_20250131
["timestamp","ask_amount","ask_price","bid_price","bid_amount"]
[1738356031521,0.223,3319.4,3319.3,3.01262]
[1738356031720,0.223,3319.4,3319.1,3.01286]
[1738356032333,0.8026,3319.3,3318.6,3.01323]
[1738356032929,0.8026,3319.3,3318.8,3.01313]
[1738356033106,1.206424,3319.3,3318.8,3.01313]
[1738356033429,1.23706692,3319.3,3318.9,0.05696643]
[1738356033588,4.24977692,3319.3,3318.9,0.05696643]
[1738356034436,1.206424,3319.3,3318.9,0.05696643]
[1738356035291,0.7532,3319.6,3319.2,3.01277]
[1738356035488,0.7532,3319.6,3319.4,3.01259]
[1738356035730,0.223,3319.5,3319.4,3.01259]
[1738356036343,0.223,3319.5,3319.2,3.01277]
[1738356036695,0.223,3319.5,3319.3,3.01263]
[1738356037631,3.01261,3319.4,3318.8,3.0131]
[1738356037832,1.003881,3319.4,3318.9,3.01304]
[1738356038194,1.003881,3319.4,3319.0,3.01288]
[1738356038195,0.55,3319.4,3319.0,3.01288]
[1738356038422,0.55,3319.4,3318.8,3.01307]
[1738356038932,0.55,3319.4,3319.0,3.01293]
[1738356039231,0.55,3319.4,3318.9,3.01302]
[1738356039537,0.7857,3319.9,3319.8,3.01222]
[1738356039742,1.0394,3320.4,3320.1,3.01191]
[1738356039927,1.0394,3320.4,3319.6,0.8122]
[1738356040090,3.01187,3320.2,3319.6,3.01239]
[1738356040295,0.7788,3321.0,3320.3,3.01177]
[1738356040490,0.7788,3321.0,3319.9,0.8132]
[1738356040491,0.7788,3321.0,3320.5,3.01155]
[1738356040792,0.7788,3321.0,3319.9,3.82529]
[1738356040793,0.223,3320.9,3320.0,3.01204]
[1738356041008,0.7788,3321.4,3320.0,3.04215517]
[1738356041214,3.01156,3320.6,3319.9,3.82524]
[1738356041430,4.87764121,3321.0,3320.2,3.01184]
[1738356041431,0.55,3320.7,3320.2,3.01184]
[1738356041807,0.7788,3321.0,3319.9,3.01213]
[1738356042142,0.7788,3321.0,3320.4,3.01162]
[1738356042143,3.78994,3321.0,3320.4,3.01162]
[1738356043035,0.55,3320.7,3319.6,0.8132]
[1738356043221,3.78885,3320.5,3319.9,3.01208]
[1738356043408,3.78885,3320.5,3319.4,3.01254]
[1738356043409,3.01183,3320.3,3319.4,3.01254]
[1738356043609,3.01183,3320.3,3319.6,3.01235]
[1738356043610,3.01191,3320.2,3319.6,3.01235]
[1738356044234,3.01169,3320.4,3319.6,3.01235]
[1738356044440,0.7772,3320.5,3319.3,0.015]
[1738356044625,0.223,3320.5,3320.3,3.01175]
[1738356044825,0.223,3320.5,3320.1,3.01187]
[1738356045056,0.55,3320.4,3319.7,3.01228]
[1738356045209,0.223,3320.5,3319.5,0.7644]
[1738356045415,0.223,3320.5,3320.1,3.0119]
[1738356045626,0.223,3320.5,3320.2,3.01185]
[1738356045827,0.223,3320.5,3320.3,3.01175]
[1738356046126,0.223,3320.5,3320.4,3.01168]
[1738356046713,0.223,3320.9,3320.8,3.01126]
[1738356046939,0.223,3320.9,3320.6,3.01149]
[1738356047141,0.223,3320.9,3320.8,0.05361228]
[1738356047644,0.223,3320.9,3320.6,3.01149]
[1738356047844,0.223,3320.9,3320.8,0.05361228]
[1738356048359,0.223,3320.9,3320.6,3.01149]
[1738356048565,0.223,3320.9,3320.8,0.05361228]
[1738356048728,0.223,3320.9,3320.7,0.05368267]
[1738356048929,4.183515,3320.9,3320.8,0.05361228]
[1738356049144,7.949515,3320.9,3320.8,0.05361228]
[1738356049350,3.7781,3320.0,3319.3,3.01268]
[1738356049661,0.55,3319.9,3319.3,3.01268]
[1738356049969,0.55,3319.9,3319.4,0.05254877]
[1738356050339,0.55,3319.9,3319.4,3.06513877]
[1738356050539,0.55,3319.9,3319.4,0.05254877]
[1738356050951,0.766,3320.0,3319.6,3.01239]
[1738356051156,0.223,3319.8,3319.7,3.01225]
[1738356051365,0.223,3319.9,3319.8,3.0122]
[1738356051724,0.223,3319.9,3319.8,3.06281668]
[1738356051924,0.223,3319.9,3319.8,0.05061668]
[1738356052665,3.23519,3319.9,3319.8,0.05059962]
[1738356052835,3.23519,3319.9,3319.6,0.05]
[1738356053083,0.223,3319.9,3319.8,0.05059962]
[1738356053239,4.60787292,3319.9,3319.6,0.05]
[1738356053429,1.0151,3319.9,3319.8,0.05059962]
[1738356053965,1.0151,3319.9,3319.6,3.06239]
[1738356054170,0.223,3319.9,3319.7,3.01225]
[1738356054370,0.7921,3320.3,3320.2,3.01186]
[1738356054536,0.223,3320.6,3320.0,3.01196]
[1738356054739,3.23454,3320.6,3320.2,0.05031792]
[1738356054965,3.23454,3320.6,3320.1,0.05038834]
[1738356055519,3.01179,3320.3,3320.1,0.05038834]
[1738356055954,3.01179,3320.3,3319.8,3.0122]
[1738356056170,3.01179,3320.3,3320.2,0.05031792]
[1738356056325,3.59246292,3320.3,3319.6,0.05]
[1738356056532,3.80121,3320.1,3319.6,0.05]
[1738356056770,3.80121,3320.1,3319.7,0.05067005]
[1738356057130,0.55,3320.5,3319.7,0.05067005]
[1738356057131,4.32647,3320.5,3319.8,3.01219]
[1738356057356,0.223,3320.6,3320.3,3.01172]
[1738356057544,0.223,3320.9,3320.5,3.01158]
[1738356057740,3.01133,3320.8,3320.4,0.0501771]
[1738356057952,3.01153,3320.6,3320.4,0.0501771]
[1738356058272,3.01153,3320.6,3320.0,3.01203]
[1738356058273,3.01153,3320.6,3320.5,0.0501067]
[1738356058482,3.77653,3320.6,3320.0,3.01203]
[1738356058638,0.765,3320.6,3320.5,0.0501067]
[1738356058844,0.55,3320.8,3320.5,0.0501067]
[1738356059041,0.55,3320.8,3320.4,3.01165]
[1738356059354,3.56132,3320.8,3320.5,0.0501067]
[1738356059531,3.01147,3320.7,3320.5,0.0501067]
[1738356059872,1.31077,3320.7,3320.6,0.05003629]
[1738356060071,0.55,3320.7,3320.2,3.01186]
[1738356060273,0.55,3320.7,3320.6,0.05003629]
[1738356060476,0.55,3320.7,3320.2,3.01186]
[1738356060623,3.56149,3320.7,3320.0,3.01202]
[1738356060829,3.59222292,3320.6,3320.3,0.05024751]
[1738356061074,4.90564121,3320.4,3319.6,3.06234]
[1738356061372,3.01196,3320.1,3319.6,3.06234]
[1738356061746,3.01193,3320.2,3319.6,3.06234]
[1738356061958,3.01193,3320.2,3319.7,0.05072695]
[1738356062158,0.03064292,3320.2,3319.7,0.05072695]
[1738356062358,3.01222,3319.8,3319.7,0.05072695]
[1738356062527,0.8265,3320.1,3319.8,3.01222]
[1738356062727,0.223,3320.2,3320.1,3.0119]
[1738356062927,0.223,3320.2,3320.1,3.01195]
[1738356063163,0.223,3320.2,3320.1,0.05039404]
[1738356063671,0.55,3320.0,3319.6,3.06239]
[1738356063884,0.223,3320.2,3319.9,3.01211]
[1738356064032,3.01232,3319.7,3319.6,0.05]
[1738356064232,3.56232,3319.7,3319.6,0.05]
[1738356064670,4.29896,3319.7,3319.6,0.05]
[1738356065643,0.7919,3319.8,3319.6,0.05]
[1738356065842,0.8305,3320.1,3319.6,0.05]
[1738356066076,0.223,3320.0,3319.6,0.05]
[1738356066276,0.223,3320.0,3319.6,3.0624]
[1738356066632,0.223,3320.0,3319.8,3.01217]
[1738356067463,0.223,3320.0,3319.6,3.06233]
[1738356067842,0.223,3320.0,3319.7,3.0123]
[1738356068263,0.223,3320.0,3319.6,3.06233]
[1738356068977,0.223,3320.0,3319.7,3.0123]
[1738356069182,0.55,3319.8,3319.6,0.05]
[1738356069353,3.01232,3319.7,3319.6,0.05]
[1738356069739,3.01231,3319.8,3319.6,0.05]
[1738356070039,0.55,3319.7,3319.6,0.05]
[1738356070234,3.56232,3319.7,3319.6,0.05]
[1738356070469,4.30589729,3319.7,3319.6,0.05]
[1738356071050,0.8305,3319.9,3319.6,0.05]
[1738356071249,3.84269,3319.9,3319.6,0.05]
[1738356071576,0.8305,3319.9,3319.7,0.0475691]
[1738356072539,0.223,3319.8,3319.7,0.0475691]
[1738356073381,3.78522,3319.8,3319.7,0.0475691]
[1738356074575,0.773,3319.8,3319.7,0.0475691]
[1738356074878,0.223,3319.8,3319.7,0.0475691]
[1738356075981,0.54651,3319.8,3319.7,0.0475691]
[1738356076181,0.223,3319.8,3319.7,0.0475691]
[1738356077278,3.78522,3319.8,3319.7,0.0475691]
[1738356077484,4.57492,3319.8,3319.6,0.05]
[1738356077846,4.57492,3319.8,3319.7,0.04750664]
[1738356078283,4.57492,3319.8,3319.6,0.05]
[1738356078658,3.01205,3320.0,3319.7,0.04750664]
[1738356078965,0.223,3319.9,3319.7,3.05978664]
[1738356079140,0.223,3320.0,3319.7,3.3707653]
[1738356079346,0.223,3320.0,3319.7,0.04750664]
[1738356079780,3.23504,3320.0,3319.7,0.04750664]
[1738356080202,0.55,3319.8,3319.7,0.04750664]
[1738356080350,7.38502,3319.8,3319.7,0.04750664]
[1738356080789,6.56232,3319.7,3319.6,0.05]
[1738356080991,10.93396121,3319.7,3319.6,0.05]
[1738356081798,4.38512,3319.7,3319.6,0.05]
[1738356081969,7.93396121,3319.7,3319.6,0.05]
[1738356082562,1.3728,3319.7,3319.6,0.05]
[1738356082752,0.223,3319.7,3319.6,0.05]
[1738356083197,0.773,3319.7,3319.6,0.09433174]
[1738356083397,3.78532,3319.7,3319.6,0.09433174]
[1738356083568,4.465076,3319.7,3319.6,0.09433174]
[1738356083772,11.80356013,3319.7,3319.6,0.09433174]
[1738356083987,11.77291721,3319.7,3319.6,0.05]
[1738356087382,3.77184121,3319.7,3319.6,0.05]
[1738356087697,0.223,3319.7,3319.6,0.09433174]
[1738356088081,3.54884121,3320.1,3319.6,0.09433174]
[1738356088303,0.223,3320.0,3319.6,3.10674174]
[1738356088508,0.223,3320.0,3319.6,0.09433174]
[1738356088799,3.23508,3320.0,3319.6,0.09433174]
[1738356089759,0.223,3320.0,3319.6,3.10673174]
[1738356090104,0.8256,3320.7,3320.1,3.01189]
[1738356090306,0.38151388,3321.1,3320.3,3.01168]
[1738356090307,0.223,3320.6,3320.3,3.01168]
[1738356090494,0.223,3320.6,3320.2,0.04390917]
[1738356090808,0.223,3320.6,3320.1,3.01188]
[1738356090809,0.223,3320.6,3320.3,0.04383876]
[1738356091107,0.223,3320.6,3320.5,3.84269]
[1738356091465,0.223,3320.6,3320.5,3.88632833]
[1738356091858,0.223,3320.7,3320.5,0.87473833]
[1738356092174,0.223,3320.7,3320.5,0.04363833]
[1738356092398,0.58064292,3320.6,3320.5,0.04363833]
[1738356092707,1.00908429,3320.6,3320.5,0.04363833]
[1738356092911,3.0,3321.2,3320.7,3.01134]
[1738356093064,0.223,3321.1,3320.8,0.04325118]
[1738356093263,0.55,3321.0,3320.6,0.8233]
[1738356093604,3.0117,3320.4,3319.9,9.5164]
[1738356093924,0.55,3320.1,3319.3,0.7564]
[1738356094205,3.01179,3320.3,3319.7,3.01231]
[1738356094503,0.223,3320.2,3320.1,3.01193]
[1738356095095,0.223,3320.2,3319.9,3.0121]
[1738356095467,0.223,3320.2,3320.0,3.01202]
[1738356095665,0.223,3320.2,3319.9,3.0121]
[1738356095884,7.35767121,3321.3,3320.6,3.01144]
[1738356096207,0.223,3320.7,3320.6,3.84374]
[1738356096403,3.80884,3321.3,3320.6,0.8323]
[1738356096605,0.223,3320.9,3320.6,3.84375]
[1738356096806,0.223,3320.9,3320.7,3.01141]
[1738356097314,0.223,3320.9,3320.6,0.8323]
[1738356097966,0.03064292,3320.8,3320.2,3.77432]
[1738356098172,0.03064292,3320.8,3320.3,3.01176]
[1738356098712,3.01143,3320.7,3320.2,3.77432]
[1738356098912,0.55,3320.8,3320.2,3.7743]
[1738356099214,0.223,3320.9,3320.6,3.01142]
[1738356099410,0.55,3321.2,3320.6,3.01142]
[1738356099710,0.223,3321.1,3320.6,3.01142]
[1738356100010,0.223,3321.1,3320.5,3.01157]
[1738356100214,3.2341,3321.1,3320.3,3.01177]
[1738356100415,0.7972,3320.8,3319.9,9.5425]
[1738356100707,3.01147,3320.7,3320.1,3.01188]
[1738356100881,0.7972,3320.8,3320.3,3.01171]
[1738356101082,3.23409,3321.1,3320.2,3.01178]
[1738356101285,3.23409,3321.1,3320.4,3.01162]
[1738356101620,3.99210312,3321.1,3320.5,3.01156]
[1738356101817,3.99210312,3321.1,3320.7,3.01138]
[1738356101818,0.223,3321.1,3320.7,3.01138]
[1738356102029,0.223,3321.1,3320.7,0.8021]
[1738356102212,0.223,3321.1,3320.7,3.81347]
[1738356102544,0.223,3321.1,3320.6,3.01148]
[1738356102897,0.223,3321.1,3320.7,3.01139]
[1738356103210,0.223,3321.1,3320.7,3.01135]
[1738356103538,0.223,3321.1,3320.8,3.01129]
[1738356103680,0.223,3321.1,3320.7,3.01135]
[1738356104324,0.223,3321.0,3320.7,3.01135]
[1738356104495,0.223,3321.0,3320.7,3.613643]
[1738356104821,0.223,3321.1,3320.9,3.01114]
[1738356105195,0.223,3321.1,3321.0,3.01114]
[1738356105401,0.223,3321.1,3321.0,3.81324]
[1738356105815,0.7808,3321.9,3321.2,3.01091]
[1738356106025,0.7808,3321.9,3321.0,0.8021]
[1738356106026,0.223,3321.3,3321.1,3.01103]
[1738356106337,0.223,3321.5,3321.4,3.01077]
[1738356106635,0.223,3321.5,3321.1,3.01102]
[1738356106926,0.223,3321.5,3321.2,0.04129294]
[1738356107286,0.223,3321.5,3321.2,3.05219294]
[1738356107634,0.223,3321.5,3321.4,3.01077]
[1738356107829,3.54884121,3322.6,3321.4,3.01077]
[1738356107830,0.223,3321.9,3321.8,3.01037]
[1738356108327,0.223,3321.9,3321.8,0.04087077]
[1738356108523,0.223,3321.9,3321.4,3.81197]
[1738356108708,0.223,3321.9,3321.5,3.05175184]
[1738356109085,0.223,3321.9,3321.5,0.04108184]
[1738356109286,3.23338,3321.9,3321.5,0.04108184]
[1738356109497,0.223,3321.9,3321.5,0.04108184]
[1738356110041,3.01007,3322.2,3321.6,3.01051]
[1738356110223,1.3778,3322.5,3321.9,3.0103]
[1738356110546,0.223,3322.4,3322.0,0.04073009]
[1738356110713,3.01001,3322.3,3321.4,0.8012]
[1738356110911,3.01001,3322.3,3321.7,3.01042]
[1738356111220,3.23288,3322.4,3321.8,0.04087077]
[1738356111430,3.23288,3322.4,3321.9,3.01032]
[1738356111798,3.23288,3322.4,3322.0,0.04073009]
[1738356112338,3.0101,3322.2,3322.1,0.04065975]
[1738356112635,3.01028,3322.0,3321.4,0.8012]
[1738356112937,3.01028,3322.0,3321.5,0.04108184]
[1738356113316,3.01028,3322.0,3321.5,3.05175184]
[1738356114039,3.01028,3322.0,3321.5,0.04108184]
[1738356114542,3.40659358,3322.0,3321.5,0.04108184]
[1738356114739,3.01043,3321.8,3321.5,0.04108184]
[1738356114938,3.01008,3322.2,3321.5,3.0106]
[1738356115141,3.01008,3322.2,3321.7,3.01049]
[1738356115346,0.223,3322.1,3321.8,0.0404765]
[1738356115517,0.223,3322.1,3321.7,3.01049]
[1738356115725,0.223,3322.1,3321.8,3.0508865]
[1738356116027,0.223,3322.0,3321.9,3.01032]
[1738356116341,0.223,3322.0,3321.9,0.04040616]
[1738356116498,0.223,3322.0,3321.5,0.05]
[1738356116499,4.04833,3322.0,3321.5,3.06067]
[1738356116703,4.04833,3322.0,3321.6,0.04061721]
[1738356116927,3.01039,3321.9,3321.5,0.05]
[1738356117130,3.01047,3321.8,3321.6,0.04037613]
[1738356117770,4.04833,3322.0,3321.6,0.04037613]
[1738356117983,0.223,3322.0,3321.6,3.05091613]
[1738356118466,0.223,3321.9,3321.6,3.05091613]
[1738356118648,3.00992,3322.4,3321.8,0.8312]
[1738356118841,0.223,3322.0,3321.9,3.01031]
[1738356119176,0.223,3322.0,3321.9,3.05052329]
[1738356119751,3.8185,3322.6,3322.1,3.01008]
[1738356120079,2.7602826,3322.7,3321.9,3.73973962]
[1738356120080,0.223,3322.5,3322.2,3.05004227]
[1738356120531,0.223,3322.5,3322.2,0.04000227]
[1738356120732,3.794,3322.9,3322.2,0.04000227]
[1738356120733,6.5562826,3323.3,3322.6,3.00963]
[1738356120959,3.23222,3323.2,3322.7,0.03958546]
[1738356121158,0.223,3323.1,3322.7,0.03958546]
[1738356121482,5.39999,3323.4,3322.6,3.00967]
[1738356121777,0.223,3323.0,3322.7,0.03958546]
[1738356122180,0.223,3323.0,3322.7,3.04917546]
[1738356122472,0.223,3323.0,3322.7,0.03958546]
[1738356122775,3.0092,3323.2,3322.7,3.04917546]
[1738356123073,0.223,3323.0,3322.7,0.03958546]
[1738356123431,0.223,3323.0,3322.7,3.04913546]
[1738356123673,3.23233,3323.0,3322.7,0.03958546]
[1738356123877,3.00951,3322.8,3322.7,0.03958546]
[1738356124177,3.00979,3322.5,3322.1,8.76]
[1738356124504,3.01002,3322.3,3321.7,3.80108]
[1738356124791,3.01017,3322.1,3321.7,0.7906]
[1738356125689,6.02019,3322.2,3321.7,0.7906]
[1738356126047,3.01038,3321.9,3321.4,0.7507]
[1738356126290,3.01049,3321.8,3321.4,0.7507]
[1738356126495,3.0106,3321.6,3321.4,0.7507]
[1738356126649,0.223,3321.5,3321.1,3.80126]
[1738356126856,0.223,3321.5,3321.1,0.7903]
[1738356127058,0.223,3321.5,3321.4,3.01077]
[1738356127253,0.223,3321.5,3321.4,3.80107]
[1738356127466,0.223,3321.5,3321.4,4.482264]
[1738356128001,0.7539,3322.5,3322.0,3.01022]
[1738356128151,3.00963,3322.7,3322.4,3.00979]
[1738356128152,0.223,3322.7,3322.4,3.00979]
[1738356128357,0.223,3322.7,3322.6,3.00969]
[1738356128753,0.005,3323.4,3323.1,3.00917]
[1738356128981,0.005,3323.4,3322.8,3.00949]
[1738356128982,3.014,3323.4,3322.8,3.0095]
[1738356129182,3.014,3323.4,3322.7,3.77643]
[1738356129364,0.005,3323.4,3322.9,3.00934]
[1738356129575,0.005,3323.4,3323.1,3.0092]
[1738356129763,0.005,3323.4,3323.2,3.00912]
[1738356130372,0.005,3323.4,3323.3,3.84005]
[1738356132121,0.005,3323.4,3322.8,3.78874]
[1738356132270,0.33703392,3323.4,3322.8,3.78874]
[1738356132469,0.005,3323.4,3323.0,3.00923]
[1738356133018,0.005,3323.4,3323.2,3.00912]
[1738356133781,0.005,3323.4,3323.3,0.05]
[1738356134305,0.005,3323.4,3323.3,3.05905]
[1738356134808,0.005,3323.4,3323.3,3.84695]
[1738356134996,0.005,3323.4,3323.3,4.53256]
[1738356135192,0.005,3323.4,3323.3,0.8379]
[1738356135393,0.005,3323.4,3323.3,0.05]
[1738356136780,0.005,3323.4,3323.3,3.84895]
[1738356136981,0.005,3323.4,3323.3,3.88634037]
[1738356137424,0.005,3323.4,3323.3,0.87729037]
[1738356137612,3.01396,3323.4,3323.3,0.08739037]
[1738356137785,0.005,3323.4,3323.3,0.08739037]
[1738356137987,3.01396,3323.4,3323.3,0.08739037]
[1738356138203,3.692344,3323.4,3323.3,0.08739037]
[1738356138627,4.242344,3323.4,3323.3,0.08739037]
[1738356138922,3.692344,3323.4,3323.3,0.05]
[1738356139125,0.228,3323.4,3323.3,0.05]
[1738356139534,0.228,3323.4,3323.3,0.08700208]
[1738356140493,0.228,3323.4,3323.3,3.09605208]
[1738356141430,0.228,3323.4,3323.3,0.08700208]
[1738356142507,0.228,3323.4,3323.3,3.09605208]
[1738356142731,0.228,3323.4,3323.3,3.40565729]
[1738356143440,0.228,3323.4,3323.3,4.22285729]
[1738356143441,0.005,3323.4,3323.3,4.22285729]
[1738356144192,0.005,3323.4,3323.3,4.25294411]
[1738356144616,0.005,3323.4,3323.3,4.22285729]
[1738356148201,0.005,3323.4,3323.3,16.02794287]
[1738356148409,0.7654,3325.4,3324.4,3.84053]
[1738356148608,0.7654,3325.4,3324.5,0.41413075]
[1738356148609,0.222,3325.3,3324.5,0.41413075]
[1738356148915,0.222,3325.3,3324.9,3.00755]
[1738356149117,3.00698,3325.6,3325.0,3.00746]
[1738356149301,0.222,3325.5,3325.1,0.601501]
[1738356149500,0.222,3325.5,3325.2,0.03550316]
[1738356149746,3.00724,3325.3,3325.2,0.03550316]
[1738356149946,3.00724,3325.3,3324.7,3.00771]
[1738356150104,3.22913,3325.5,3324.8,0.03578401]
[1738356150309,3.00743,3325.1,3324.8,0.03578401]
[1738356150532,3.00726,3325.3,3324.5,3.391943]
[1738356150786,3.00734,3325.2,3324.6,0.45836876]
[1738356151932,3.00734,3325.2,3324.6,0.73860377]
[1738356152303,0.1647821,3325.7,3325.5,3.00702]
[1738356152502,0.1647821,3325.7,3325.6,0.03522238]
[1738356152716,0.1647821,3325.7,3325.1,0.8325]
[1738356152717,3.1716621,3325.7,3325.1,0.8325]
[1738356152953,3.1716621,3325.7,3325.2,0.03550316]
[1738356152954,3.00722,3325.4,3325.2,0.03550316]
[1738356153149,3.00724,3325.3,3324.8,0.8325]
[1738356153353,3.00724,3325.3,3324.9,0.03571379]
[1738356153509,3.00724,3325.3,3324.6,3.4302943]
[1738356153816,3.00724,3325.3,3324.7,0.03585424]
[1738356154017,3.00724,3325.3,3324.7,3.04358424]
[1738356154609,3.22934,3325.2,3324.7,0.03585424]
[1738356155040,3.22934,3325.2,3324.6,3.00786]
[1738356155211,3.22934,3325.2,3324.8,0.03578401]
[1738356155413,3.22934,3325.2,3324.7,0.03539277]
[1738356155414,0.222,3325.2,3324.7,0.03539277]
[1738356155628,3.22935,3325.2,3324.9,0.03525233]
[1738356155826,0.845659,3325.2,3324.8,0.03532255]
[1738356156156,3.00791,3324.6,3324.2,0.7698]
[1738356156453,3.00813,3324.4,3323.6,3.00877]
[1738356156613,3.00781,3324.7,3324.0,3.0084]
[1738356156808,2.95781,3324.7,3324.0,3.0084]
[1738356157014,2.95781,3324.7,3323.7,0.8013]
[1738356157015,3.00808,3324.4,3323.7,0.8013]
[1738356157329,0.672573,3324.7,3323.7,0.8013]
[1738356157330,0.672573,3324.7,3323.8,3.00853]
[1738356157536,3.00797,3324.5,3323.7,0.8013]
[1738356157732,3.00809,3324.4,3323.7,3.80994]
[1738356158059,3.00828,3324.2,3323.8,0.28034444]
[1738356158253,3.00842,3324.0,3323.8,0.28034444]
[1738356158484,3.23051,3323.9,3323.8,0.28034444]
[1738356158867,4.642203,3323.9,3323.8,0.28034444]
[1738356159589,4.642203,3323.9,3323.3,0.05]
[1738356159784,4.01831,3323.9,3323.3,0.05]
[1738356159954,3.00889,3323.5,3323.3,0.05]
[1738356160355,3.00896,3323.4,3323.3,0.05]
[1738356160662,3.00896,3323.4,3323.1,0.28034444]
[1738356161290,3.00889,3323.5,3323.1,0.28034444]
[1738356161672,3.79463,3323.3,3323.1,0.28034444]
[1738356161885,3.00914,3323.2,3323.1,0.28034444]
[1738356163054,3.00914,3323.2,3322.6,0.28034444]
[1738356163302,3.00914,3323.2,3323.1,0.03526458]
[1738356163484,3.00936,3323.0,3322.6,0.28034444]
[1738356163806,3.79463,3323.3,3322.7,0.03554579]
[1738356164411,3.00916,3323.2,3322.7,0.03554579]
[1738356164560,3.00916,3323.2,3322.7,0.31589023]
[1738356164908,3.00947,3322.9,3322.7,0.31589023]
[1738356165803,3.04011292,3322.9,3322.7,0.31589023]
[1738356166024,3.00951,3322.8,3322.7,0.31589023]
[1738356166187,3.81951,3322.8,3322.7,0.03554579]
[1738356166389,3.81951,3322.8,3322.4,0.28034444]
[1738356166390,3.00969,3322.6,3322.4,0.28034444]
[1738356166594,0.222,3322.5,3322.4,0.28034444]
[1738356166788,3.58559192,3322.5,3322.4,0.28034444]
[1738356167137,3.554949,3322.5,3322.4,0.28034444]
[1738356167794,3.01004,3322.3,3321.6,0.8131]
[1738356167977,3.01004,3322.3,3321.7,0.03558191]
[1738356168180,3.01038,3321.9,3321.7,0.03558191]
[1738356168442,3.01042,3321.8,3321.3,0.7849]
[1738356170327,3.61555129,3321.8,3321.0,3.76224]
[1738356170505,0.7874,3322.1,3321.0,0.7511]
[1738356170707,3.01071,3321.5,3321.0,0.7511]
[1738356171423,3.01092,3321.3,3320.7,0.8136]
[1738356171579,0.222,3321.2,3320.7,0.8136]
[1738356171776,0.222,3321.2,3320.7,3.825]
[1738356172009,0.222,3321.2,3320.7,4.508647]
[1738356172809,3.01108,3321.1,3320.7,0.8136]
[1738356173401,0.222,3321.2,3320.7,0.8136]
[1738356173653,0.222,3321.2,3320.9,3.01115]
[1738356173853,0.222,3321.2,3320.7,0.8136]
[1738356173854,6.81405,3321.9,3321.0,0.0301111]
[1738356174165,3.01066,3321.6,3320.9,3.80042]
[1738356174475,3.01052,3321.7,3321.1,3.01102]
[1738356174838,3.23261,3321.6,3321.2,0.03692538]
[1738356175341,3.23261,3321.6,3321.3,0.03685501]
[1738356175342,3.01077,3321.4,3321.3,0.03685501]
[1738356175645,3.23261,3321.6,3320.9,3.80035]
[1738356175834,3.23261,3321.6,3321.3,0.03685501]
[1738356175835,3.01069,3321.5,3321.3,0.03685501]
[1738356176177,1.082469,3321.4,3320.6,3.01145]
[1738356176367,0.7592,3321.4,3320.7,0.0372773]
[1738356176883,3.01086,3321.3,3320.7,0.0372773]
[1738356177085,3.01132,3320.8,3320.7,0.0372773]
[1738356177292,3.01143,3320.7,3320.2,0.8179]
[1738356177592,3.01132,3320.8,3320.2,3.82976]
[1738356177746,3.01126,3320.9,3320.3,3.04930891]
[1738356177948,3.0109,3321.3,3320.3,0.03755891]
[1738356178184,3.01155,3320.6,3320.3,0.03755891]
[1738356178352,3.01155,3320.6,3320.0,3.01204]
[1738356178552,3.01155,3320.6,3320.1,0.03769974]
[1738356178876,3.01166,3320.5,3320.1,0.03769974]
[1738356179052,3.01155,3320.6,3320.1,0.03769974]
[1738356179248,3.01155,3320.6,3320.0,3.01198]
[1738356179499,3.01155,3320.6,3320.2,0.03762932]
[1738356179809,3.01155,3320.6,3320.3,0.03755891]
[1738356180009,3.01155,3320.6,3319.8,3.01222]
[1738356180168,3.01169,3320.4,3319.9,0.03784059]
[1738356180501,0.7645,3320.8,3320.0,0.7726]
[1738356180502,0.222,3320.3,3320.0,0.7726]
[1738356180704,0.222,3320.3,3320.1,3.01189]
[1738356180914,0.222,3320.3,3320.2,3.01186]
[1738356181408,0.222,3320.7,3320.6,3.77321]
[1738356181563,0.222,3321.4,3321.0,3.01107]
[1738356181907,0.222,3321.4,3321.1,0.03758849]
[1738356182298,0.222,3321.4,3320.8,3.01131]
[1738356182477,0.222,3321.4,3321.2,0.03751812]
[1738356182682,0.222,3321.4,3321.1,3.01098]
[1738356183011,0.222,3321.4,3321.3,3.01086]
[1738356183175,0.222,3321.4,3321.3,0.03744775]
[1738356183529,3.01093,3321.3,3320.6,7.463211]
[1738356183712,0.03064292,3321.2,3320.5,8.76]
[1738356183913,3.01098,3321.2,3320.6,3.01149]
[1738356184099,3.01115,3321.0,3320.5,11.77157]
[1738356184410,3.83518,3321.2,3320.6,3.01144]
[1738356184578,6.84622,3321.2,3320.5,11.77157]
[1738356184796,6.84622,3321.2,3320.6,3.0115]
[1738356184797,4.542002,3321.2,3320.6,3.0115]
[1738356184981,4.542002,3321.2,3320.5,8.76]
[1738356185184,3.01116,3321.0,3320.5,11.77154]
[1738356185495,3.0115,3320.6,3320.0,3.01204]
[1738356185667,3.01136,3320.8,3320.0,3.01204]
[1738356185866,3.01115,3321.0,3320.0,3.01204]
[1738356185867,3.01115,3321.0,3320.4,3.01159]
[1738356186112,3.01115,3321.0,3320.2,3.0118]
[1738356186299,3.01134,3320.8,3320.2,3.0118]
[1738356186468,3.01134,3320.8,3320.2,3.01178]
[1738356187073,3.01115,3321.0,3320.4,3.01168]
[1738356187301,3.4384247,3321.0,3320.4,3.01168]
[1738356187619,3.01127,3320.9,3320.3,3.01174]
[1738356188090,3.4384247,3321.0,3320.2,3.01178]
[1738356188091,3.01132,3320.8,3320.2,3.01178]
[1738356188281,3.01132,3320.8,3320.3,3.01176]